bitfinex/quotes_BTCUSD_20220204
["timestamp","ask_amount","ask_price","bid_price","bid_amount"]
[1643972250421,0.15364288,37886.0,37873.0,0.73863984]
[1643972250422,0.15364288,37886.0,37873.0,0.83883028]
[1643972250624,0.0009702,37878.0,37873.0,0.83883028]
[1643972250821,0.0009702,37878.0,37873.0,0.499771]
[1643972251025,0.066018,37877.0,37876.0,0.28969326]
[1643972251266,0.066018,37877.0,37876.0,0.73662376]
[1643972251466,0.066018,37877.0,37876.0,0.347271]
[1643972251670,0.116018,37877.0,37876.0,0.347271]
[1643972251967,0.166018,37877.0,37875.0,0.66577177]
[1643972252567,0.05,37877.0,37875.0,0.97530768]
[1643972252767,0.116008,37879.0,37875.0,0.97530768]
[1643972252969,0.00097024,37878.0,37876.0,0.2558699]
[1643972253169,0.00097024,37878.0,37877.0,0.747271]
[1643972253369,0.00097024,37878.0,37877.0,0.347271]
[1643972253969,0.16110495,37879.0,37877.0,0.347271]
[1643972254169,0.06697822,37879.0,37877.0,0.347271]
[1643972255019,0.06697822,37879.0,37878.0,1.94619245]
[1643972255219,0.066008,37879.0,37878.0,1.94619245]
[1643972255821,0.066008,37879.0,37878.0,0.59619245]
[1643972256019,0.066008,37879.0,37878.0,0.64619245]
[1643972256223,0.00097021,37880.0,37878.0,0.74619245]
[1643972256420,0.065997,37883.0,37879.0,2.26163413]
[1643972256620,0.0009702,37880.0,37879.0,0.71163413]
[1643972256820,0.0009702,37880.0,37879.0,0.81163413]
[1643972257627,0.198008,37882.0,37879.0,0.81163413]
[1643972257821,0.01680038,37882.0,37879.0,0.81163413]
[1643972258024,0.01680038,37882.0,37879.0,0.399771]
[1643972258223,0.01680038,37882.0,37881.0,0.347271]
[1643972258422,0.01680038,37882.0,37881.0,0.60290676]
[1643972259070,0.08280538,37882.0,37881.0,0.88716294]
[1643972259273,0.13280538,37882.0,37881.0,0.53989194]
[1643972259471,0.116005,37882.0,37881.0,0.53989194]
[1643972259671,0.116005,37882.0,37881.0,0.88716294]
[1643972260275,0.066005,37882.0,37881.0,0.88716294]
[1643972260471,0.116005,37882.0,37881.0,0.53989194]
[1643972261075,0.066005,37882.0,37881.0,0.53989194]
[1643972261273,0.116005,37882.0,37881.0,0.347271]
[1643972261476,0.116005,37882.0,37880.0,0.347271]
[1643972261674,0.05,37881.0,37880.0,0.347271]
[1643972261874,0.05,37881.0,37879.0,0.399771]
[1643972262075,0.066005,37882.0,37880.0,0.24458122]
[1643972262076,0.132006,37882.0,37880.0,0.24458122]
[1643972262274,0.132006,37882.0,37881.0,0.347271]
[1643972262518,0.132006,37882.0,37881.0,0.25973626]
[1643972262817,0.132006,37882.0,37881.0,0.34522037]
[1643972262818,0.1662336,37882.0,37881.0,0.34522037]
[1643972263019,0.066005,37882.0,37881.0,0.347271]
[1643972263216,0.066005,37882.0,37876.0,0.37257952]
[1643972263217,0.26666005,37882.0,37876.0,0.37257952]
[1643972263418,0.116005,37882.0,37877.0,0.347271]
[1643972263618,0.36677918,37879.0,37871.0,0.01]
[1643972263816,0.09719128,37878.0,37876.0,0.00097099]
[1643972264119,0.09719128,37878.0,37871.0,0.29076015]
[1643972264120,0.20898323,37877.0,37871.0,0.29076015]
[1643972264315,0.05,37875.0,37874.0,0.22665507]
[1643972264717,0.05,37875.0,37873.0,0.17777407]
[1643972264916,0.045,37875.0,37873.0,0.17796297]
[1643972265216,0.177046,37875.0,37874.0,0.95349944]
[1643972265418,0.177046,37875.0,37874.0,1.30095934]
[1643972265618,0.227046,37875.0,37874.0,1.30077044]
[1643972266281,0.227046,37875.0,37874.0,1.30095934]
[1643972266482,0.227046,37875.0,37874.0,0.60095934]
[1643972267282,0.227046,37875.0,37874.0,0.59595934]
[1643972267482,0.227046,37875.0,37874.0,0.60095934]
[1643972268085,0.066023,37875.0,37874.0,2.30095934]
[1643972268287,0.00049957,37878.0,37874.0,2.58017756]
[1643972268487,0.065993,37882.0,37881.0,0.05]
[1643972268687,0.065993,37882.0,37881.0,0.402256]
[1643972268987,0.065993,37882.0,37881.0,0.502256]
[1643972269188,0.065993,37882.0,37881.0,0.4524449]
[1643972270225,0.065993,37882.0,37881.0,0.3524449]
[1643972270421,0.065993,37882.0,37881.0,0.60100586]
[1643972271223,0.00096671,37883.0,37881.0,0.65100586]
[1643972271424,0.00096671,37883.0,37882.0,1.89850739]
[1643972271623,0.00096671,37883.0,37882.0,1.89869629]
[1643972272025,0.045,37889.0,37882.0,1.95119629]
[1643972272225,0.28876348,37890.0,37887.0,0.005]
[1643972272426,0.11099,37887.0,37884.0,0.347256]
[1643972272625,0.16099,37887.0,37884.0,0.399756]
[1643972272826,0.11599,37887.0,37884.0,0.347256]
[1643972273025,0.045,37885.0,37884.0,0.347256]
[1643972273668,0.045,37885.0,37883.0,0.347256]
[1643972273968,0.045,37885.0,37882.0,0.0001889]
[1643972273969,0.045,37885.0,37882.0,0.347256]
[1643972274169,0.045,37885.0,37882.0,0.3474449]
[1643972274372,0.066003,37886.0,37882.0,0.3474449]
[1643972274574,0.00097031,37885.0,37882.0,0.3474449]
[1643972274770,0.00097031,37885.0,37882.0,0.5740691]
[1643972275170,0.045,37883.0,37882.0,0.5740691]
[1643972275970,0.045,37883.0,37882.0,0.5738802]
[1643972276170,0.045,37883.0,37882.0,0.5740691]
[1643972276571,0.045,37883.0,37881.0,0.2268131]
[1643972276773,0.26512838,37882.0,37880.0,0.0001889]
[1643972276973,0.066013,37881.0,37878.0,0.2266242]
[1643972277430,0.116013,37881.0,37880.0,0.005]
[1643972277623,0.116013,37881.0,37880.0,0.42596455]
[1643972277823,0.06237538,37881.0,37880.0,0.65277765]
[1643972278123,0.06237538,37881.0,37880.0,0.2268131]
[1643972278324,0.01237538,37881.0,37880.0,0.5740691]
[1643972279323,0.01237538,37881.0,37880.0,0.3474449]
[1643972279527,0.01237538,37881.0,37880.0,0.0001889]
[1643972279724,0.01237538,37881.0,37880.0,0.25741447]
[1643972279924,0.05737538,37881.0,37880.0,0.24387551]
[1643972280124,0.01237538,37881.0,37880.0,0.24481096]
[1643972280324,0.01237538,37881.0,37880.0,0.53742135]
[1643972280528,0.045,37888.0,37880.0,0.25415056]
[1643972280726,0.00096938,37882.0,37881.0,1.197256]
[1643972280924,0.00096938,37882.0,37881.0,1.352256]
[1643972281172,0.00096938,37882.0,37881.0,1.35244487]
[1643972281373,0.00096938,37882.0,37881.0,0.50244487]
[1643972281575,0.045,37885.0,37881.0,0.50244487]
[1643972281773,0.045,37885.0,37884.0,0.005]
[1643972281974,0.045,37885.0,37884.0,0.352256]
[1643972282178,0.2165795,37892.0,37884.0,0.352256]
[1643972282375,0.2165795,37892.0,37886.0,0.05]
[1643972282376,0.06599,37889.0,37886.0,0.05]
[1643972282577,0.11099,37889.0,37888.0,0.005]
[1643972282775,0.06599,37889.0,37888.0,0.352256]
[1643972282975,0.06599,37889.0,37888.0,0.59557318]
[1643972283277,0.11099,37889.0,37888.0,0.24831718]
[1643972283675,0.11599,37889.0,37888.0,0.24831718]
[1643972283876,0.06599,37889.0,37888.0,0.59557318]
[1643972284277,0.06599,37889.0,37888.0,0.24831718]
[1643972284478,0.06599,37889.0,37888.0,0.59557318]
[1643972284780,0.06599,37889.0,37888.0,0.24831718]
[1643972285020,0.06599,37889.0,37888.0,0.59557318]
[1643972285220,0.06599,37889.0,37888.0,0.24831718]
[1643972285422,0.045,37889.0,37888.0,0.24831718]
[1643972285621,0.045,37891.0,37889.0,0.347256]
[1643972285820,0.045,37891.0,37889.0,0.352256]
[1643972287624,0.110991,37891.0,37889.0,0.352256]
[1643972287822,0.110991,37891.0,37887.0,0.22740244]
[1643972288025,0.347256,37890.0,37887.0,0.22740244]
[1643972288228,0.065996,37890.0,37888.0,0.27281534]
[1643972288427,0.197976,37898.0,37888.0,0.27281534]
[1643972288428,0.045,37895.0,37889.0,0.1075]
[1643972288677,0.42,37899.0,37894.0,0.005]
[1643972288678,0.347256,37898.0,37894.0,0.005]
[1643972288876,0.347256,37898.0,37895.0,0.0525]
[1643972289073,0.169427,37896.0,37895.0,0.0525]
[1643972289276,0.42,37899.0,37895.0,0.75281905]
[1643972289474,0.169427,37896.0,37895.0,0.39367428]
[1643972289675,0.045,37898.0,37895.0,0.0525]
[1643972289875,0.347256,37897.0,37895.0,0.0525]
[1643972290079,0.347256,37897.0,37896.0,0.005]
[1643972290278,0.347256,37897.0,37896.0,0.1075]
[1643972290475,0.00102156,37898.0,37896.0,0.34136873]
[1643972290674,0.347256,37897.0,37896.0,0.34136873]
[1643972290875,0.00102156,37898.0,37897.0,0.28175292]
[1643972291181,0.001,37900.0,37897.0,0.43590744]
[1643972291380,0.348256,37900.0,37899.0,0.005]
[1643972292431,0.001,37900.0,37897.0,0.43590744]
[1643972292922,0.001,37900.0,37899.0,0.955]
[1643972293123,0.001,37900.0,37899.0,1.64421632]
[1643972293321,0.001,37900.0,37899.0,0.69421632]
[1643972293924,0.001,37900.0,37899.0,1.56914532]
[1643972294425,0.001,37900.0,37899.0,0.96914532]
[1643972294823,0.001,37900.0,37899.0,0.90319632]
[1643972295023,0.262,37905.0,37899.0,0.90319632]
[1643972295024,0.18125494,37905.0,37899.0,0.90319632]
[1643972295228,0.347256,37910.0,37909.0,0.19453755]
[1643972295425,0.347256,37910.0,37908.0,0.05]
[1643972295624,0.05,37909.0,37906.0,0.05]
[1643972295825,0.05,37907.0,37906.0,0.05]
[1643972296273,0.065954,37909.0,37906.0,0.05]
[1643972296274,0.347256,37908.0,37906.0,0.1283638]
[1643972297877,0.397256,37908.0,37906.0,0.1283638]
[1643972298678,0.397256,37908.0,37907.0,0.05]
[1643972299183,0.169427,37907.0,37905.0,0.0525]
[1643972299579,0.05,37906.0,37905.0,0.0525]
[1643972299779,0.397256,37906.0,37905.0,0.0525]
[1643972301227,0.230958,37906.0,37905.0,0.0525]
[1643972302327,0.230958,37906.0,37905.0,0.14547672]
[1643972303329,0.09489502,37906.0,37905.0,0.14547672]
[1643972304977,0.09489502,37906.0,37905.0,0.19547672]
[1643972305175,0.00102251,37907.0,37905.0,0.19547672]
[1643972305375,0.00102251,37907.0,37905.0,0.24547672]
[1643972305677,0.001,37911.0,37905.0,0.24547672]
[1643972305678,0.001,37911.0,37906.0,0.347064]
[1643972305875,0.00102251,37908.0,37907.0,0.05]
[1643972306077,0.26537451,37908.0,37907.0,0.39146537]
[1643972306675,0.00102251,37908.0,37907.0,0.39146537]
[1643972306877,0.264352,37909.0,37907.0,0.39146537]
[1643972307085,0.26537449,37909.0,37907.0,0.39146537]
[1643972307723,0.26537449,37909.0,37907.0,0.29146537]
[1643972307920,0.26537449,37909.0,37905.0,0.14547672]
[1643972308119,0.264352,37909.0,37905.0,0.14547672]
[1643972308322,0.264352,37909.0,37908.0,0.05]
[1643972308520,0.26537448,37910.0,37908.0,0.05]
[1643972308719,0.26537448,37910.0,37905.0,0.0525]
[1643972308919,0.26537448,37910.0,37900.0,0.4547742]
[1643972308920,0.55086916,37910.0,37900.0,0.4547742]
[1643972309126,0.065963,37908.0,37900.0,0.1]
[1643972309320,0.065968,37906.0,37897.0,0.28175292]
[1643972309621,0.065968,37906.0,37891.0,0.05]
[1643972309622,0.264352,37905.0,37891.0,0.31165582]
[1643972309820,0.264352,37905.0,37890.0,0.00409194]
[1643972309821,0.22947355,37901.0,37897.0,0.0872878]
[1643972310120,0.264352,37900.0,37898.0,0.30549599]
[1643972310621,0.065973,37902.0,37899.0,0.347064]
[1643972311472,0.065973,37902.0,37901.0,0.347064]
[1643972311671,0.25758963,37902.0,37899.0,0.05]
[1643972311870,0.12152124,37902.0,37900.0,0.347064]
[1643972313270,0.18749424,37902.0,37900.0,0.347064]
[1643972313473,0.065973,37902.0,37900.0,0.347064]
[1643972313671,0.065973,37902.0,37900.0,0.397064]
[1643972313871,0.00102257,37903.0,37901.0,0.347099]
[1643972314071,0.00102257,37903.0,37898.0,0.20255999]
[1643972314072,0.001,37911.0,37902.0,0.347099]
[1643972314273,0.001,37911.0,37902.0,1.7525]
[1643972314274,0.00102257,37903.0,37902.0,1.7525]
[1643972314474,0.00081139,37903.0,37902.0,2.099599]
[1643972314674,0.00081139,37903.0,37902.0,2.149599]
[1643972314929,0.00081139,37903.0,37902.0,2.42720484]
[1643972315125,0.00081139,37903.0,37902.0,2.49314282]
[1643972315327,0.001,37911.0,37902.0,2.49314282]
[1643972315527,0.001,37911.0,37910.0,0.37061542]
[1643972315729,0.001,37911.0,37910.0,0.6599493]
[1643972315927,0.001,37911.0,37910.0,1.1070483]
[1643972316134,0.051,37911.0,37910.0,1.1070483]
[1643972316428,0.001,37911.0,37910.0,1.1070483]
[1643972318688,0.051,37911.0,37910.0,0.77021442]
[1643972318981,0.051,37911.0,37910.0,1.13255205]
[1643972318982,0.001,37911.0,37910.0,1.13255205]
[1643972319182,0.001,37911.0,37910.0,1.23255205]
[1643972319584,0.001,37911.0,37910.0,1.13255205]
[1643972319881,0.001,37911.0,37910.0,1.23255205]
[1643972320083,0.001,37911.0,37910.0,1.28255205]
[1643972320383,0.051,37911.0,37910.0,1.23255205]
[1643972320785,0.001,37911.0,37910.0,1.23255205]
[1643972322287,0.001,37911.0,37910.0,1.28255205]
[1643972322728,0.051,37911.0,37910.0,1.23255205]
[1643972323125,0.001,37911.0,37910.0,1.23255205]
[1643972325026,0.051,37911.0,37910.0,1.23255205]
[1643972325227,0.026,37911.0,37910.0,1.23255205]
[1643972325426,0.00312395,37912.0,37910.0,1.23255205]
[1643972325827,0.026,37911.0,37910.0,1.23255205]
[1643972326671,0.026,37911.0,37910.0,1.13255205]
[1643972326871,0.026,37911.0,37910.0,1.08005205]
[1643972327070,0.026,37911.0,37910.0,1.10405205]
[1643972328272,0.026,37911.0,37910.0,0.75695305]
[1643972328672,0.28675836,37911.0,37910.0,0.75695305]
[1643972329474,0.28675836,37911.0,37910.0,1.10405205]
[1643972329925,0.026,37911.0,37910.0,1.10405205]
[1643972330122,0.00312395,37912.0,37910.0,1.20405205]
[1643972334166,0.446,37921.0,37920.0,0.85877902]
[1643972334365,0.446,37921.0,37920.0,0.87468902]
[1643972334763,0.42,37921.0,37920.0,0.82718902]
[1643972334965,0.42,37921.0,37920.0,1.01245368]
[1643972334966,0.446,37921.0,37920.0,1.01245368]
[1643972335163,0.446,37921.0,37920.0,0.79390148]
[1643972335364,0.446,37921.0,37920.0,1.11688948]
[1643972335564,0.446,37921.0,37920.0,1.14088948]
[1643972335565,0.42,37921.0,37920.0,1.14088948]
[1643972336165,0.446,37921.0,37920.0,1.11688948]
[1643972336364,0.446,37921.0,37920.0,1.14088948]
[1643972336565,0.42,37921.0,37920.0,1.14088948]
[1643972336769,0.42,37921.0,37920.0,1.20679848]
[1643972336964,0.446,37921.0,37920.0,0.465397]
[1643972337166,0.446,37921.0,37920.0,0.346988]
[1643972337409,0.446,37921.0,37912.0,0.25036069]
[1643972337605,0.026,37916.0,37914.0,0.22636069]
[1643972337805,0.42,37921.0,37914.0,0.22636069]
[1643972337806,0.065936,37920.0,37914.0,0.22636069]
[1643972338005,0.01127679,37915.0,37914.0,0.22636069]
[1643972338206,0.42,37921.0,37919.0,0.23157091]
[1643972338406,0.42,37921.0,37918.0,0.09200365]
[1643972338407,0.35826479,37920.0,37918.0,0.09200365]
[1643972338607,0.01127679,37920.0,37911.0,0.22636069]
[1643972338807,0.42,37921.0,37912.0,0.346988]
[1643972339410,0.23260047,37917.0,37912.0,0.346988]
[1643972339607,0.23260047,37917.0,37912.0,0.446988]
[1643972339608,0.21164231,37914.0,37912.0,0.446988]
[1643972340207,0.21164231,37914.0,37912.0,0.346988]
[1643972340208,0.01127679,37913.0,37912.0,0.346988]
[1643972340406,0.01127679,37913.0,37910.0,0.346988]
[1643972341455,0.212667,37914.0,37910.0,0.346988]
[1643972341456,0.00102469,37914.0,37910.0,0.346988]
[1643972341656,0.01127679,37912.0,37910.0,0.38571121]
[1643972341855,0.065949,37915.0,37910.0,0.38571121]
[1643972341856,0.01127679,37913.0,37910.0,0.446988]
[1643972342058,0.01127679,37913.0,37912.0,0.03872321]
[1643972342256,0.01127679,37913.0,37912.0,0.346988]
[1643972342456,0.21062455,37913.0,37912.0,0.346988]
[1643972342658,0.21062455,37913.0,37909.0,0.08641009]
[1643972342856,0.19934776,37913.0,37910.0,0.346988]
[1643972343059,0.01127679,37911.0,37910.0,0.346988]
[1643972344359,0.01127679,37911.0,37910.0,0.42143355]
[1643972344912,0.00102468,37914.0,37910.0,0.56015676]
[1643972344913,0.01230147,37914.0,37910.0,0.56015676]
[1643972345305,0.01127679,37914.0,37910.0,0.56015676]
[1643972345605,0.01127679,37914.0,37910.0,0.57143355]
[1643972345606,0.01230149,37914.0,37910.0,0.57143355]
[1643972345805,0.01230149,37914.0,37913.0,0.38571121]
[1643972346005,0.01230149,37914.0,37913.0,0.346988]
[1643972346204,0.01230149,37914.0,37913.0,0.446988]
[1643972346406,0.26710727,37914.0,37913.0,0.346988]
[1643972346606,0.26710727,37914.0,37903.0,0.03872321]
[1643972346607,0.01127679,37914.0,37905.0,0.00052488]
[1643972346807,0.21025805,37908.0,37905.0,0.00052488]
[1643972347005,0.21025805,37908.0,37906.0,0.346988]
[1643972347505,0.01127679,37907.0,37906.0,0.346988]
[1643972348105,0.01127679,37907.0,37906.0,0.335288]
[1643972348782,0.6235876,37907.0,37905.0,0.00052488]
[1643972348982,0.6235876,37907.0,37901.0,0.22636069]
[1643972348983,0.32221616,37906.0,37901.0,0.22636069]
[1643972349181,0.32221616,37906.0,37905.0,0.00102441]
[1643972349381,0.413036,37906.0,37905.0,0.00102441]
[1643972349581,0.63944756,37906.0,37905.0,0.00102441]
[1643972350084,0.63944756,37906.0,37900.0,0.22636069]
[1643972350281,0.29237956,37906.0,37904.0,0.00102442]
[1643972350480,0.01127679,37905.0,37904.0,0.00102442]
[1643972351282,0.01127679,37905.0,37902.0,0.347068]
[1643972351483,0.065968,37906.0,37903.0,0.00102444]
[1643972351682,0.01127679,37904.0,37903.0,0.00102444]
[1643972352415,0.01127679,37904.0,37903.0,0.347068]
[1643972352609,0.01127679,37904.0,37903.0,0.43488328]
[1643972352807,0.065968,37906.0,37903.0,0.43488328]
[1643972352808,0.05224479,37906.0,37903.0,0.43488328]
[1643972353106,0.05224479,37906.0,37904.0,0.347068]
[1643972353307,0.05224479,37906.0,37903.0,0.08781528]
[1643972353908,0.05224479,37906.0,37903.0,0.08883972]
[1643972354105,0.05224479,37906.0,37903.0,0.00102444]
[1643972354307,0.05224479,37906.0,37904.0,0.22195678]
[1643972355007,0.26025805,37908.0,37904.0,0.22195678]
[1643972356262,0.26025805,37908.0,37906.0,0.08430258]
[1643972356662,0.347068,37907.0,37906.0,0.08430258]
[1643972357867,0.347068,37907.0,37905.0,0.00102441]
[1643972358469,0.322068,37907.0,37901.0,0.02006316]
[1643972358666,0.322068,37907.0,37904.0,0.00102442]
[1643972358667,0.25783421,37906.0,37904.0,0.00102442]
[1643972358867,0.947085,37905.0,37904.0,0.00102442]
[1643972359067,1.74441544,37905.0,37904.0,0.00102442]
[1643972359267,1.79441544,37905.0,37904.0,0.00102442]
[1643972359467,1.53965314,37905.0,37904.0,0.00102442]
[1643972359666,0.93965314,37905.0,37897.0,0.31887409]
[1643972359911,0.05,37904.0,37903.0,0.00052492]
[1643972360109,0.847085,37904.0,37903.0,0.00052492]
[1643972360911,0.21243651,37901.0,37898.0,0.02125096]
[1643972361208,0.27840451,37901.0,37899.0,0.347085]
[1643972361408,0.27840451,37901.0,37898.0,0.02125096]
[1643972362110,0.347085,37900.0,37898.0,0.02125096]
[1643972362311,0.347085,37900.0,37898.0,0.02227499]
[1643972363112,0.27840451,37901.0,37898.0,0.02227499]
[1643972363310,0.38222138,37905.0,37899.0,0.347085]
[1643972363510,0.05,37905.0,37897.0,0.00102404]
[1643972363757,0.131938,37909.0,37898.0,0.347085]
[1643972363957,0.131938,37909.0,37897.0,0.00102404]
[1643972364357,0.131939,37904.0,37897.0,0.00102404]
[1643972364556,0.131939,37904.0,37903.0,0.08134219]
[1643972365156,0.529024,37904.0,37903.0,0.08134219]
[1643972365356,0.579024,37904.0,37903.0,0.08134219]
[1643972365556,0.579024,37904.0,37901.0,0.00102398]
[1643972365759,0.065966,37902.0,37897.0,0.347085]
[1643972366659,0.0525,37901.0,37896.0,0.00409652]
[1643972366859,0.1025,37901.0,37896.0,0.11113806]
[1643972367059,0.1525,37901.0,37897.0,0.00095645]
[1643972367257,0.065973,37900.0,37897.0,0.00095645]
[1643972367507,0.19380913,37899.0,37897.0,0.00095645]
[1643972367909,0.1,37899.0,37897.0,0.00095645]
[1643972368106,0.118473,37900.0,37896.0,0.11113806]
[1643972368107,0.184444,37900.0,37896.0,0.11113806]
[1643972368310,0.05,37899.0,37896.0,0.11209452]
[1643972368706,0.1,37899.0,37896.0,0.11209452]
[1643972368907,0.2196852,37898.0,37896.0,0.09037071]
[1643972369307,0.2196852,37898.0,37896.0,0.08941425]
[1643972369509,0.1,37899.0,37896.0,0.08941425]
[1643972370810,0.1,37899.0,37896.0,0.09037375]
[1643972371661,0.1,37899.0,37896.0,0.08941425]
[1643972371861,0.1,37899.0,37896.0,0.09037375]
[1643972372861,0.1,37899.0,37896.0,0.08941425]
[1643972373062,0.1,37899.0,37896.0,0.09037375]
[1643972374161,0.131944,37900.0,37896.0,0.08941425]
[1643972374361,0.131944,37900.0,37897.0,0.347085]
[1643972375608,0.131944,37900.0,37897.0,0.34804428]
[1643972376409,0.05,37899.0,37897.0,0.34804428]
[1643972376609,0.131944,37900.0,37897.0,0.347085]
[1643972376808,0.131944,37900.0,37897.0,0.34804428]
[1643972377708,0.131944,37900.0,37897.0,0.347085]
[1643972377909,0.131944,37900.0,37897.0,0.34804428]
[1643972378110,0.131944,37900.0,37898.0,0.26334486]
[1643972378312,0.131922,37909.0,37899.0,0.347085]
[1643972378514,0.131903,37911.0,37900.0,0.397085]
[1643972378763,0.33347825,37916.0,37900.0,0.397085]
[1643972378764,0.10903127,37916.0,37900.0,0.397085]
[1643972379163,0.19213549,37909.0,37908.0,0.25653219]
[1643972379362,0.347085,37909.0,37908.0,0.25653219]
[1643972379564,0.347085,37913.0,37908.0,0.25653219]
[1643972379965,0.255575,37911.0,37908.0,0.25653219]
[1643972380366,0.065947,37914.0,37909.0,0.347085]
[1643972380367,0.065945,37912.0,37909.0,0.347085]
[1643972380665,0.00095901,37914.0,37910.0,0.26301544]
[1643972380864,0.00095901,37914.0,37913.0,0.55]
[1643972381071,0.00095901,37914.0,37913.0,1.14248787]
[1643972381263,0.43987761,37921.0,37913.0,1.19248787]
[1643972381264,0.00034998,37919.0,37913.0,1.19248787]
[1643972381462,0.50580461,37921.0,37913.0,1.19248787]
[1643972381463,0.00034998,37917.0,37914.0,0.64991007]
[1643972381662,0.50580461,37921.0,37914.0,0.64991007]
[1643972381663,0.00095902,37915.0,37914.0,0.64991007]
[1643972381862,0.00095902,37915.0,37914.0,0.92178393]
[1643972382612,0.00034998,37920.0,37914.0,0.92178393]
[1643972382613,0.00034998,37918.0,37914.0,0.92178393]
[1643972382813,0.00095899,37916.0,37915.0,0.347085]
[1643972383012,0.00095899,37916.0,37915.0,0.59799413]
[1643972383615,0.00095899,37916.0,37915.0,0.64799413]
[1643972383814,0.485927,37921.0,37915.0,0.70049413]
[1643972383815,0.00034998,37920.0,37915.0,0.70049413]
[1643972384013,0.42,37921.0,37918.0,0.05]
[1643972384215,0.42,37921.0,37920.0,0.05]
[1643972384414,0.41992454,37921.0,37920.0,0.66946431]
[1643972384814,0.41992454,37921.0,37920.0,0.76108138]
[1643972385014,0.41992454,37921.0,37920.0,1.05205665]
[1643972385416,0.41992454,37921.0,37920.0,0.70497165]
[1643972385615,0.41992454,37921.0,37920.0,1.00205665]
[1643972385815,0.46992454,37921.0,37920.0,1.00205665]
[1643972387063,0.46992454,37921.0,37920.0,0.72967734]
[1643972387262,0.81700954,37921.0,37920.0,0.29097527]
[1643972387461,0.81700954,37921.0,37915.0,0.184338]
[1643972387462,0.51992454,37921.0,37917.0,0.347085]
[1643972387662,0.42027441,37921.0,37917.0,0.347085]
[1643972387862,0.05,37918.0,37915.0,0.0525]
[1643972388464,0.05,37918.0,37916.0,0.347085]
[1643972388766,0.05,37918.0,37916.0,0.399585]
[1643972388767,0.05095896,37918.0,37916.0,0.399585]
[1643972388962,0.05095896,37918.0,37917.0,0.347085]
[1643972389162,0.05095896,37918.0,37916.0,0.0525]
[1643972389362,0.065934,37917.0,37915.0,0.3382859]
[1643972389565,0.00095896,37918.0,37916.0,0.5956323]
[1643972389763,0.00034987,37917.0,37916.0,0.447085]
[1643972390018,0.00130884,37918.0,37916.0,1.78105947]
[1643972390219,0.00095897,37918.0,37917.0,1.0195983]
[1643972390417,0.00095897,37918.0,37917.0,1.3666833]
[1643972390618,0.00095897,37918.0,37917.0,0.6166833]
[1643972391019,0.00034987,37920.0,37917.0,0.6166833]
[1643972391220,0.05,37918.0,37916.0,0.1]
[1643972391422,0.00095895,37919.0,37917.0,0.347085]
[1643972391621,0.00095895,37919.0,37915.0,0.20193188]
[1643972391622,0.39743487,37918.0,37915.0,0.1]
[1643972391819,0.39743487,37918.0,37913.0,0.0525]
[1643972391820,0.347085,37918.0,37913.0,0.0525]
[1643972392020,0.347085,37918.0,37906.0,0.24765243]
[1643972392021,0.05,37914.0,37906.0,0.49137016]
[1643972392221,0.68156698,37921.0,37906.0,0.41837674]
[1643972392222,0.06595,37913.0,37906.0,0.41837674]
[1643972392419,0.11595,37913.0,37906.0,0.41837674]
[1643972392620,0.11595,37913.0,37912.0,0.29609844]
[1643972392621,0.06595,37913.0,37912.0,0.29609844]
[1643972393020,0.06595,37913.0,37908.0,0.23923279]
[1643972393219,0.00024068,37913.0,37909.0,0.347085]
[1643972393860,0.00024068,37913.0,37906.0,0.24630766]
[1643972394065,0.00024068,37913.0,37906.0,0.34748211]
[1643972394261,0.05,37911.0,37906.0,0.79456711]
[1643972394461,0.05,37911.0,37906.0,0.93169915]
[1643972394660,0.065949,37911.0,37906.0,1.03169915]
[1643972394860,0.05,37909.0,37906.0,1.03169915]
[1643972395061,0.05,37909.0,37906.0,0.79456711]
[1643972396065,0.24692169,37909.0,37906.0,0.79456711]
[1643972396464,0.05,37909.0,37906.0,0.79456711]
[1643972397064,0.05,37909.0,37906.0,0.69456711]
[1643972397264,0.131903,37911.0,37906.0,0.69456711]
[1643972397265,0.065949,37911.0,37906.0,0.69456711]
[1643972397514,0.05,37907.0,37906.0,0.69456711]
[1643972398313,0.05,37907.0,37906.0,0.76836314]
[1643972399514,0.26901953,37907.0,37906.0,0.76836314]
[1643972399916,0.26901953,37907.0,37906.0,0.347085]
[1643972400316,0.26901953,37907.0,37905.0,0.00095872]
[1643972400317,0.31901953,37907.0,37905.0,0.00095872]
[1643972400516,0.31901953,37907.0,37902.0,0.05]
[1643972400717,0.31901953,37907.0,37896.0,2.89781217]
[1643972400718,0.26901953,37907.0,37904.0,0.00095875]
[1643972401161,0.05,37905.0,37904.0,0.43645108]
[1643972401763,0.05,37905.0,37904.0,0.43549233]
[1643972402365,0.0510676,37905.0,37904.0,0.43549233]
[1643972405610,0.0510676,37905.0,37904.0,0.4354051]
[1643972407711,0.0010676,37905.0,37904.0,0.4354051]
[1643972408310,0.0010676,37905.0,37904.0,0.43289083]
[1643972408962,0.0010676,37905.0,37904.0,0.49883583]
[1643972409562,0.07581032,37905.0,37904.0,0.49883583]
[1643972409761,0.15055304,37905.0,37904.0,0.49883583]
[1643972410563,0.15055304,37905.0,37904.0,0.43289083]
[1643972410962,0.15055304,37905.0,37904.0,0.68046821]
[1643972411163,0.15055304,37905.0,37904.0,0.43289083]
[1643972411164,0.20055304,37905.0,37904.0,0.43289083]
[1643972412418,0.20055304,37905.0,37904.0,0.347085]
[1643972413216,0.15055304,37905.0,37904.0,0.347085]
[1643972413617,0.15055304,37905.0,37904.0,0.42274423]
[1643972413916,0.15055304,37905.0,37904.0,0.52274423]
[1643972413917,0.11931952,37905.0,37904.0,0.52274423]
[1643972414115,0.11931952,37905.0,37904.0,0.75880169]
[1643972414818,0.24464304,37912.0,37904.0,0.75880169]
[1643972415018,0.11931952,37905.0,37904.0,0.347085]
[1643972415223,0.11931952,37905.0,37901.0,0.184386]
[1643972415224,0.48063522,37905.0,37903.0,0.00095877]
[1643972415420,1.7668907,37904.0,37903.0,0.00095877]
[1643972415619,1.558075,37904.0,37903.0,0.00095877]
[1643972415818,1.78120996,37904.0,37903.0,0.00095877]
[1643972416266,0.065979,37901.0,37893.0,0.10289234]
[1643972416468,0.06597899,37902.0,37893.0,0.10289234]
[1643972416469,0.50830518,37896.0,37893.0,0.10289234]